fUSD/lending_fUSD_20250111
["ID","MTS","AMOUNT","RATE_DAILY","PERIOD"]
[348566713,1736621454780,-595.72577522,0.0001126,2]
[348566714,1736621454791,-632.20422478,0.0001126,2]
[348566715,1736621454800,-765.37,0.0001126,2]
[348566716,1736621454810,-500.0,0.0001126,2]
[348566717,1736621454819,-1105.42577522,0.0001126,2]
[348566718,1736621454830,-344.33422478,0.0001126,2]
[348566719,1736621454839,-500.0,0.0001126,2]
[348566720,1736621454848,-500.0,0.0001126,2]
[348566721,1736621454858,-500.0,0.0001126,2]
[348566722,1736621454867,-931.60578287,0.0001126,2]
[348566723,1736621454878,-309.25421713,0.0001126,2]
[348566724,1736621454887,-500.0,0.0001126,2]
[348566725,1736621454896,-500.0,0.0001126,2]
[348566726,1736621454906,-500.0,0.0001126,2]
[348566727,1736621454915,-1220.82478844,0.0001126,2]
[348566728,1736621454925,-874.23521156,0.0001126,2]
[348566729,1736621454934,-586.74978844,0.0001126,2]
[348566730,1736621454945,-689.41820677,0.0001126,2]
[348566731,1736621454955,-433.58200479,0.0001126,2]
[348566732,1736621454964,-500.0,0.0001126,2]
[348566733,1736621454973,-498.39145091,0.0001126,2]
[348566734,1736621455570,-500.0,0.00010162,2]
[348566735,1736621455579,-500.0,0.00010162,2]
[348566736,1736621455588,-500.0,0.00010163,2]
[348566737,1736621455597,-500.0,0.00010163,2]
[348566738,1736621455606,-500.0,0.00010163,2]
[348566739,1736621455615,-538.46774256,0.00010163,2]
[348566740,1736621455624,-500.0,0.00010163,2]
[348566741,1736621455634,-193.75,0.00010436,2]
[348566742,1736621455643,-152.32,0.00010664,2]
[348566743,1736621455652,-107.7464618,0.0001126,2]
[348566744,1736621455663,-688.76208729,0.0001126,2]
[348566745,1736621455673,-706.9531919,0.0001126,2]
[348566746,1736621455684,-67.4068081,0.0001126,2]
[348566747,1736621455693,-500.0,0.0001126,2]
[348566748,1736621455702,-500.0,0.0001126,2]
[348566749,1736621455711,-102.5931919,0.0001126,2]
[348566750,1736621455722,-2053.4168081,0.0001126,2]
[348566751,1736621455736,-500.0,0.0001126,2]
[348566752,1736621455745,-500.0,0.0001126,2]
[348566753,1736621455754,-259.7879325,0.0001126,2]
[348566754,1736621455766,-240.2120675,0.0001126,2]
[348566755,1736621455775,-500.0,0.0001126,2]
[348566756,1736621455784,-222.40626884,0.0001126,2]
[348566757,1736621455793,-500.0,0.0001126,2]
[348566758,1736621455804,-500.0,0.0001126,2]
[348566759,1736621455813,-500.0,0.0001126,2]
[348566760,1736621455822,-252.59,0.0001126,2]
[348566761,1736621455831,-500.0,0.0001126,2]
[348566762,1736621455840,-350.73,0.0001126,2]
[348566763,1736621455849,-18.86166368,0.0001126,2]
[348566764,1736621455861,-515.16833632,0.0001126,2]
[348566765,1736621455870,-81.88023323,0.0001126,2]
[348566766,1736621455888,-418.11976677,0.0001126,2]
[348566767,1736621455897,-500.0,0.0001126,2]
[348566768,1736621455906,-490.79212242,0.0001126,2]
[348566769,1736621455923,-91.75787758,0.0001126,2]
[348566770,1736621455933,-500.0,0.0001126,2]
[348566771,1736621455942,-534.68995812,0.0001126,2]
[348566772,1736621455951,-500.0,0.0001126,2]
[348566773,1736621455961,-500.0,0.0001126,2]
[348566774,1736621455971,-500.0,0.0001126,2]
[348566775,1736621455982,-660.95,0.0001126,2]
[348566776,1736621455991,-500.0,0.0001126,2]
[348566777,1736621456001,-514.46,0.0001126,2]
[348566778,1736621456010,-500.0,0.0001126,2]
[348566779,1736621456020,-851.4,0.0001126,2]
[348566780,1736621456030,-915.78,0.0001126,2]
[348566781,1736621456040,-1015.76,0.0001126,2]
[348566782,1736621456049,-955.24,0.00011261,2]
[348566783,1736621456059,-1983.29,0.00011261,2]
[348566784,1736621456069,-1036.51,0.00011261,2]
[348566785,1736621456079,-1442.19,0.00011261,2]
[348566786,1736621456089,-764.7,0.00011261,2]
[348566787,1736621456100,-972.09,0.00011261,2]
[348566788,1736621456110,-516.86,0.00011261,2]
[348566789,1736621456120,-666.27,0.00011262,2]
[348566790,1736621456129,-652.94,0.00011262,2]
[348566791,1736621456139,-500.0,0.00011263,2]
[348566792,1736621456149,-554.02,0.00011263,2]
[348566793,1736621456159,-500.0,0.00011263,2]
[348566794,1736621456169,-1015.29,0.00011263,2]
[348566795,1736621456178,-626.6,0.00011263,2]
[348566796,1736621456188,-1565.13,0.00011263,2]
[348566797,1736621456198,-858.25,0.00011263,2]
[348566798,1736621456208,-1345.22,0.00011263,2]
[348566799,1736621456218,-1795.38,0.00011263,2]
[348566800,1736621456228,-6450.46,0.00011263,2]
[348566801,1736621456238,-500.0,0.00011263,2]
[348566802,1736621456247,-766.84082118,0.00011263,2]
[348566803,1736621456445,-500.0,0.00010163,2]
[348566804,1736621456456,-999.49,0.00010165,2]
[348566805,1736621456466,-695.25917882,0.00011263,2]
[348566806,1736621456476,-682.76,0.00011263,2]
[348566807,1736621456487,-1096.56,0.00011263,2]
[348566808,1736621456497,-500.0,0.00011263,2]
[348566809,1736621456507,-1358.89,0.00011263,2]
[348566810,1736621456518,-500.0,0.00011263,2]
[348566811,1736621456529,-1047.52,0.00011263,2]
[348566812,1736621456540,-155.996627,0.00011266,2]
[348566813,1736621456552,-151.423521,0.00011266,2]
[348566814,1736621456561,-196.301247,0.00011266,2]
[348566815,1736621456572,-922.17,0.00011294,2]
[348566816,1736621456582,-600.0,0.00011308,2]
[348566817,1736621456594,-32.52942618,0.00011361,2]
[348566818,1736621456606,-966.47057382,0.00011361,2]
[348566819,1736621456616,-155.996627,0.00011369,2]
[348566820,1736621456625,-151.423521,0.00011369,2]
[348566821,1736621456635,-206.87842556,0.000114,2]
[348566822,1736621456645,-150.0,0.00011452,2]
[348566823,1736621456654,-150.0,0.00011452,2]
[348566824,1736621456664,-150.0,0.00011452,2]
[348566825,1736621456674,-3869.42218947,0.00011474,2]
[348566826,1736621456684,-316.05,0.00011505,2]
[348566827,1736621456693,-874.95866317,0.00011507,2]
[348566828,1736621456705,-1320.97133683,0.00011507,2]
[348566829,1736621456715,-151.423521,0.00011532,2]
[348566830,1736621456725,-896.57943802,0.00011532,2]
[348566831,1736621456739,-256.48,0.00011532,2]
[348566832,1736621456774,-565.31056198,0.00011532,2]
[348566833,1736621456783,-2818.84,0.00011532,2]
[348566834,1736621456793,-1639.4,0.00011532,2]
[348566835,1736621456803,-500.0,0.00011532,2]
[348566836,1736621456813,-736.0,0.00011532,2]
[348566837,1736621456823,-2029.26,0.00011532,2]
[348566838,1736621456833,-724.79,0.00011532,2]
[348566839,1736621456842,-978.23,0.00011532,2]
[348566840,1736621456852,-532.82,0.00011532,2]
[348566841,1736621456862,-577.29,0.00011532,2]
[348566842,1736621456872,-500.0,0.00011532,2]
[348566843,1736621456883,-1827.43,0.00011532,2]
[348566844,1736621456893,-500.0,0.00011532,2]
[348566845,1736621456904,-500.0,0.00011532,2]
[348566846,1736621456916,-1230.85,0.00011532,2]
[348566847,1736621456926,-547.0,0.00011533,2]
[348566848,1736621456936,-320.78,0.00011533,2]
[348566849,1736621456946,-500.0,0.00011533,2]
[348566850,1736621456955,-500.0,0.00011533,2]
[348566851,1736621456965,-500.0,0.00011533,2]
[348566852,1736621456975,-500.0,0.00011533,2]
[348566853,1736621456985,-500.0,0.00011533,2]
[348566854,1736621456995,-500.0,0.00011533,2]
[348566855,1736621457004,-500.0,0.00011533,2]
[348566856,1736621457014,-593.18,0.00011533,2]
[348566857,1736621457024,-500.0,0.00011533,2]
[348566858,1736621457034,-532.45,0.00011533,2]
[348566859,1736621457044,-578.67,0.00011533,2]
[348566860,1736621457053,-594.42,0.00011533,2]
[348566861,1736621457063,-500.0,0.00011533,2]
[348566862,1736621457073,-478.11,0.00011533,2]
[348566863,1736621457083,-500.0,0.00011533,2]
[348566864,1736621457093,-519.49,0.00011533,2]
[348566865,1736621457102,-500.0,0.00011533,2]
[348566866,1736621457113,-500.0,0.00011533,2]
[348566867,1736621457122,-500.0,0.00011533,2]
[348566868,1736621457132,-500.0,0.00011533,2]
[348566869,1736621457142,-500.0,0.00011533,2]
[348566870,1736621457152,-500.0,0.00011533,2]
[348566871,1736621457163,-530.84,0.00011533,2]
[348566872,1736621457173,-500.0,0.00011533,2]
[348566873,1736621457183,-500.0,0.00011533,2]
[348566874,1736621457193,-500.0,0.00011533,2]
[348566875,1736621457203,-500.0,0.00011533,2]
[348566876,1736621457213,-500.0,0.00011533,2]
[348566877,1736621457224,-500.0,0.00011533,2]
[348566878,1736621457234,-500.0,0.00011533,2]
[348566879,1736621457245,-500.0,0.00011533,2]
[348566880,1736621457256,-500.0,0.00011533,2]
[348566881,1736621457267,-500.0,0.00011533,2]
[348566882,1736621457277,-4290.62,0.00011533,2]
[348566883,1736621457287,-995.86,0.00011533,2]
[348566884,1736621457297,-500.0,0.00011533,2]
[348566885,1736621457307,-500.0,0.00011533,2]
[348566886,1736621457318,-783.11,0.00011533,2]
[348566887,1736621457327,-500.0,0.00011533,2]
[348566888,1736621457337,-2256.78,0.00011533,2]
[348566889,1736621457349,-2102.59,0.00011533,2]
[348566890,1736621457359,-500.0,0.00011533,2]
[348566891,1736621457369,-500.0,0.00011533,2]
[348566892,1736621457379,-500.0,0.00011533,2]
[348566893,1736621457389,-2192.98,0.00011533,2]
[348566894,1736621457399,-1538.91,0.00011533,2]
[348566895,1736621457409,-753.15,0.00011533,2]
[348566896,1736621457419,-500.0,0.00011533,2]
[348566897,1736621457429,-500.0,0.00011533,2]
[348566898,1736621457439,-500.0,0.00011533,2]
[348566899,1736621457449,-500.0,0.00011533,2]
[348566900,1736621457459,-1520.67,0.00011533,2]
[348566901,1736621457470,-500.0,0.00011533,2]
[348566902,1736621457480,-500.0,0.00011533,2]
[348566903,1736621457490,-1088.08,0.00011533,2]
[348566904,1736621457501,-500.0,0.00011533,2]
[348566905,1736621457512,-500.0,0.00011533,2]
[348566906,1736621457523,-500.0,0.00011533,2]
[348566907,1736621457533,-500.0,0.00011533,2]
[348566908,1736621457543,-500.0,0.00011533,2]
[348566909,1736621457553,-813.04,0.00011533,2]
[348566910,1736621457564,-500.0,0.00011533,2]
[348566911,1736621457575,-500.0,0.00011533,2]
[348566912,1736621457586,-500.0,0.00011533,2]
[348566913,1736621457597,-500.0,0.00011533,2]
[348566914,1736621457610,-500.0,0.00011533,2]
[348566915,1736621457620,-500.0,0.00011533,2]
[348566916,1736621457632,-500.0,0.00011533,2]
[348566917,1736621457642,-500.0,0.00011533,2]
[348566918,1736621457652,-500.0,0.00011533,2]
[348566919,1736621457662,-476.67,0.00011534,2]
[348566920,1736621457671,-636.08,0.00011534,2]
[348566921,1736621457681,-853.25,0.00011534,2]
[348566922,1736621457691,-1981.72,0.00011534,2]
[348566923,1736621457701,-583.2,0.00011534,2]
[348566924,1736621457711,-500.0,0.00011534,2]
[348566925,1736621457721,-2219.66,0.00011534,2]
[348566926,1736621457736,-529.66,0.00011534,2]
[348566927,1736621457746,-500.0,0.00011534,2]
[348566928,1736621457756,-715.56,0.00011534,2]
[348566929,1736621457767,-908.13,0.00011534,2]
[348566930,1736621457776,-1227.93,0.00011534,2]
[348566931,1736621457786,-765.37,0.00011534,2]
[348566932,1736621457796,-1449.76,0.00011534,2]
[348566933,1736621457807,-500.0,0.00011534,2]
[348566934,1736621457817,-1240.86,0.00011534,2]
[348566935,1736621457828,-500.0,0.00011534,2]
[348566936,1736621457837,-500.0,0.00011534,2]
[348566937,1736621457848,-500.0,0.00011534,2]
[348566938,1736621457859,-2095.06,0.00011534,2]
[348566939,1736621457868,-1709.75,0.00011534,2]
[348566940,1736621457878,-500.0,0.00011534,2]
[348566941,1736621457888,-1294.9,0.00011534,2]
[348566942,1736621457898,-774.36,0.00011534,2]
[348566943,1736621457908,-500.0,0.00011534,2]
[348566944,1736621457918,-500.0,0.00011534,2]
[348566945,1736621457928,-2156.01,0.00011534,2]
[348566946,1736621457937,-500.0,0.00011534,2]
[348566947,1736621457947,-500.0,0.00011534,2]
[348566948,1736621457956,-500.0,0.00011534,2]
[348566949,1736621457966,-534.03,0.00011534,2]
[348566950,1736621457976,-582.55,0.00011534,2]
[348566951,1736621457986,-286.964995,0.00011534,2]
[348566952,1736621457996,-660.95,0.00011534,2]
[348566953,1736621458005,-349.21,0.00011534,2]
[348566954,1736621458015,-514.46,0.00011534,2]
[348566955,1736621458024,-851.4,0.00011534,2]
[348566956,1736621458034,-915.78,0.00011534,2]
[348566957,1736621458044,-1015.76,0.00011534,2]
[348566958,1736621458054,-955.24,0.00011535,2]
[348566959,1736621458064,-1983.29,0.00011535,2]
[348566960,1736621458073,-1036.51,0.00011535,2]
[348566961,1736621458083,-1442.19,0.00011535,2]
[348566962,1736621458093,-764.7,0.00011535,2]
[348566963,1736621458105,-972.09,0.00011535,2]
[348566964,1736621458114,-516.86,0.00011535,2]
[348566965,1736621458125,-666.27,0.00011536,2]
[348566966,1736621458135,-652.94,0.00011536,2]
[348566967,1736621458145,-500.0,0.00011537,2]
[348566968,1736621458156,-554.02,0.00011537,2]
[348566969,1736621458166,-500.0,0.00011537,2]
[348566970,1736621458177,-1015.29,0.00011537,2]
[348566971,1736621458188,-626.6,0.00011537,2]
[348566972,1736621458199,-1565.13,0.00011537,2]
[348566973,1736621458210,-858.25,0.00011537,2]
[348566974,1736621458220,-1345.22,0.00011537,2]
[348566975,1736621458230,-1795.38,0.00011537,2]
[348566976,1736621458241,-6450.46,0.00011537,2]
[348566977,1736621458251,-500.0,0.00011537,2]
[348566978,1736621458261,-1462.1,0.00011537,2]
[348566979,1736621458271,-682.76,0.00011537,2]
[348566980,1736621458281,-1096.56,0.00011537,2]
[348566981,1736621458293,-500.0,0.00011537,2]
[348566982,1736621458303,-1358.89,0.00011537,2]
[348566983,1736621458315,-500.0,0.00011537,2]
[348566984,1736621458326,-1047.52,0.00011537,2]
[348566985,1736621458335,-155.996627,0.00011538,2]
[348566986,1736621458350,-155.726861,0.00011538,2]
[348566987,1736621458360,-155.996627,0.0001154,2]
[348566988,1736621458547,-151.423521,0.0001154,2]
[348566989,1736621458557,-151.423521,0.00011541,2]
[348566990,1736621458567,-155.996627,0.00011643,2]
[348566991,1736621458576,-31240.0,0.00011671,2]
[348566992,1736621458585,-18760.0,0.00011671,2]
[348566993,1736621458594,-202.861,0.0001168,2]
[348566994,1736621458604,-819.0,0.00011686,2]
[348566995,1736621458613,-2944.0,0.00011686,2]
[348566996,1736621458623,-537.0,0.00011686,2]
[348566997,1736621458632,-1665.561,0.00011686,2]
[348566998,1736621458641,-3896.0,0.00011686,2]
[348566999,1736621458651,-150.0,0.00011686,2]
[348567000,1736621458660,-3869.42218947,0.00011709,2]
[348567001,1736621458670,-121834.92041554,0.00011711,4]
[348567002,1736621458690,-15387.1239229,0.00011711,4]
[348567003,1736621458702,-5332.0,0.00011711,4]
[348567004,1736621458713,-112039.37964903,0.00011711,4]
[348567005,1736621458723,-6637.00035087,0.00011711,2]
[348567006,1736621458737,-350.0,0.00011711,2]
[348567007,1736621458748,-7223.9999,0.00011711,2]
[348567008,1736621503910,500.0,8.22e-05,2]
[348567009,1736621525604,1700.0,8.22e-05,2]
[348567014,1736622129761,811.4,8.219e-05,2]
[348567025,1736622604828,1700.0,8.22e-05,2]
[348567027,1736622631608,-250.0,9.29e-05,2]
[348567028,1736622631618,-300.0,9.35e-05,2]
[348567029,1736622631628,-568.86,9.351e-05,2]
[348567030,1736622631637,-500.0,9.351e-05,2]
[348567031,1736622631646,-500.0,9.351e-05,2]
[348567032,1736622631655,-228.19080391,9.351e-05,2]
[348567033,1736622631665,-231.22764045,9.351e-05,2]
[348567034,1736622631674,-283.4,9.407e-05,2]
[348567035,1736622631683,-265.49,9.461e-05,2]
[348567036,1736622631692,-250.0,9.487e-05,2]
[348567037,1736622631702,-1116.22748198,9.49e-05,2]
[348567038,1736622631711,-1116.22748198,9.49e-05,2]
[348567039,1736622631720,-500.0,9.59e-05,2]
[348567040,1736622631732,-1700.0,9.59e-05,2]
[348567041,1736622631741,-231.22764044,9.757e-05,2]
[348567042,1736622631751,-231.22764044,0.00010063,2]
[348567043,1736622631761,-3820.1214,0.00010063,2]
[348567044,1736622631770,-994.17,0.00010086,2]
[348567045,1736622631779,-161.15,0.00010137,2]
[348567046,1736622631789,-604.83,0.00010137,2]
[348567047,1736622631799,-150.0,0.00010161,2]
[348567048,1736622631810,-980.34,0.00010162,2]
[348567049,1736622631819,-500.0,0.00010162,2]
[348567050,1736622631830,-500.0,0.00010162,2]
[348567051,1736622631841,-500.0,0.00010162,2]
[348567052,1736622631852,-500.0,0.00010162,2]
[348567053,1736622631861,-500.0,0.00010162,2]
[348567054,1736622631871,-500.0,0.00010162,2]
[348567055,1736622631880,-500.0,0.00010162,2]
[348567056,1736622631890,-500.0,0.00010162,2]
[348567057,1736622631899,-500.0,0.00010162,2]
[348567058,1736622631908,-508.75,0.00010162,2]
[348567059,1736622631918,-500.0,0.00010162,2]
[348567060,1736622631928,-500.0,0.00010162,2]
[348567061,1736622631938,-500.0,0.00010162,2]
[348567062,1736622631947,-500.0,0.00010162,2]
[348567063,1736622631957,-656.8,0.00010162,2]
[348567064,1736622631967,-500.0,0.00010162,2]
[348567065,1736622631976,-500.0,0.00010162,2]
[348567066,1736622631986,-500.0,0.00010162,2]
[348567067,1736622631996,-500.0,0.00010162,2]
[348567068,1736622632005,-500.0,0.00010162,2]
[348567069,1736622632015,-500.0,0.00010162,2]
[348567070,1736622632025,-500.0,0.00010162,2]
[348567071,1736622632036,-500.0,0.00010162,2]
[348567072,1736622632045,-500.0,0.00010162,2]
[348567073,1736622632055,-500.0,0.00010162,2]
[348567074,1736622632064,-500.0,0.00010162,2]
[348567075,1736622632074,-500.0,0.00010162,2]
[348567076,1736622632087,-500.0,0.00010162,2]
[348567078,1736622632096,-638.55,0.00010162,2]
[348567080,1736622632105,-500.0,0.00010163,2]
[348567082,1736622632115,-500.0,0.00010163,2]
[348567084,1736622632124,-500.0,0.00010163,2]
[348567086,1736622632133,-500.0,0.00010163,2]
[348567088,1736622632143,-500.0,0.00010163,2]
[348567090,1736622632153,-500.0,0.00010163,2]
[348567092,1736622632164,-500.0,0.00010163,2]
[348567094,1736622632173,-500.0,0.00010163,2]
[348567096,1736622632184,-500.0,0.00010163,2]
[348567098,1736622632194,-500.0,0.00010163,2]
[348567100,1736622632203,-500.0,0.00010163,2]
[348567102,1736622632213,-437.92923976,0.00010163,2]
[348567104,1736622632222,-585.13771077,0.00010163,2]
[348567106,1736622632231,-500.0,0.00010163,2]
[348567108,1736622632241,-500.0,0.00010163,2]
[348567110,1736622632250,-500.0,0.00010163,2]
[348567112,1736622632259,-500.0,0.00010163,2]
[348567114,1736622632269,-500.0,0.00010163,2]
[348567116,1736622632278,-500.0,0.00010163,2]
[348567118,1736622632287,-500.0,0.00010163,2]
[348567120,1736622632296,-500.0,0.00010163,2]
[348567121,1736622632305,-500.0,0.00010163,2]
[348567123,1736622632314,-500.0,0.00010163,2]
[348567125,1736622632323,-500.0,0.00010163,2]
[348567127,1736622632332,-500.0,0.00010163,2]
[348567129,1736622632341,-500.0,0.00010163,2]
[348567131,1736622632350,-500.0,0.00010163,2]
[348567133,1736622632359,-500.0,0.00010163,2]
[348567135,1736622632368,-500.0,0.00010163,2]
[348567137,1736622632377,-500.0,0.00010163,2]
[348567139,1736622632387,-500.0,0.00010163,2]
[348567141,1736622632397,-500.0,0.00010163,2]
[348567143,1736622632406,-500.0,0.00010163,2]
[348567145,1736622632416,-500.0,0.00010163,2]
[348567147,1736622632425,-451.51006687,0.00010163,2]
[348567149,1736622632434,-500.0,0.00010163,2]
[348567151,1736622632443,-500.0,0.00010163,2]
[348567153,1736622632455,-500.0,0.00010163,2]
[348567155,1736622632464,-500.0,0.00010163,2]
[348567157,1736622632474,-500.0,0.00010163,2]
[348567159,1736622632483,-500.0,0.00010163,2]
[348567161,1736622632492,-716.43,0.00010164,2]
[348567163,1736622632501,-1487.47,0.00010164,2]
[348567165,1736622632510,-777.38,0.00010164,2]
[348567167,1736622632519,-1081.65,0.00010164,2]
[348567169,1736622632528,-573.53,0.00010164,2]
[348567171,1736622632537,-729.07,0.00010164,2]
[348567173,1736622632546,-500.0,0.00010164,2]
[348567174,1736622632555,-1106.66,0.00010164,2]
[348567177,1736622632564,-520.05,0.00010164,2]
[348567179,1736622632575,-500.0,0.00010164,2]
[348567180,1736622632584,-517.47,0.00010164,2]
[348567182,1736622632593,-500.0,0.00010164,2]
[348567184,1736622632602,-500.0,0.00010164,2]
[348567186,1736622632611,-500.0,0.00010164,2]
[348567188,1736622632620,-853.47,0.00010164,2]
[348567190,1736622632629,-725.73,0.00010164,2]
[348567192,1736622632639,-1166.39,0.00010164,2]
[348567194,1736622632648,-668.75,0.00010164,2]
[348567196,1736622632657,-1027.5,0.00010164,2]
[348567198,1736622632666,-1352.05,0.00010164,2]
[348567200,1736622632675,-4865.22,0.00010164,2]
[348567202,1736622632684,-1073.95,0.00010164,2]
[348567204,1736622632694,-500.0,0.00010164,2]
[348567206,1736622632703,-500.0,0.00010164,2]
[348567208,1736622632712,-1195.73,0.00010164,2]
[348567210,1736622632721,-500.0,0.00010164,2]
[348567212,1736622632731,-500.0,0.00010164,2]
[348567214,1736622632742,-526.2,0.00010164,2]
[348567216,1736622632751,-835.76,0.00010164,2]
[348567218,1736622632760,-560.55,0.00010165,2]
[348567220,1736622632771,-999.57,0.00010165,2]
[348567222,1736622632780,-1000.0,0.00010166,2]
[348567224,1736622632790,-500.0,0.00010166,2]
[348567226,1736622632799,-770.4,0.00010166,2]
[348567228,1736622632810,-420.0,0.00010285,2]
[348567230,1736622632819,-1000.0,0.00010336,2]
[348567232,1736622632828,-790.8897,0.00010337,2]
[348567234,1736622632838,-811.4,0.00010435,2]
[348567236,1736622632847,-500.0,0.00010436,2]
[348567238,1736622632856,-500.0,0.00010436,2]
[348567240,1736622632865,-500.0,0.00010436,2]
[348567242,1736622632874,-656.8,0.00010436,2]
[348567244,1736622632884,-500.0,0.00010436,2]
[348567246,1736622632893,-500.0,0.00010436,2]
[348567248,1736622632903,-500.0,0.00010436,2]
[348567250,1736622632912,-500.0,0.00010436,2]
[348567252,1736622632921,-500.0,0.00010436,2]
[348567254,1736622632930,-500.0,0.00010436,2]
[348567256,1736622632939,-500.0,0.00010436,2]
[348567258,1736622632948,-500.0,0.00010436,2]
[348567260,1736622632957,-500.0,0.00010436,2]
[348567262,1736622632966,-1763.45,0.00010436,2]
[348567264,1736622632976,-708.92,0.00010436,2]
[348567266,1736622632985,-1148.6,0.00010436,2]
[348567268,1736622632994,-3217.96,0.00010436,2]
[348567270,1736622633004,-573.26,0.00010436,2]
[348567272,1736622633013,-500.0,0.00010436,2]
[348567273,1736622633022,-632.97,0.00010436,2]
[348567275,1736622633033,-500.0,0.00010436,2]
[348567277,1736622633043,-1576.94,0.00010436,2]
[348567279,1736622633053,-500.0,0.00010436,2]
[348567281,1736622633062,-500.0,0.00010436,2]
[348567283,1736622633074,-1726.37,0.00010436,2]
[348567285,1736622633083,-587.7,0.00010436,2]
[348567287,1736622633092,-923.13,0.00010436,2]
[348567289,1736622633106,-1288.78,0.00010436,2]
[348567291,1736622633116,-500.0,0.00010436,2]
[348567293,1736622633125,-2114.13,0.00010436,2]
[348567295,1736622633135,-864.56,0.00010436,2]
[348567297,1736622633144,-1229.55,0.00010436,2]
[348567299,1736622633153,-699.21,0.00010436,2]
[348567301,1736622633162,-500.0,0.00010436,2]
[348567303,1736622633172,-1521.94,0.00010436,2]
[348567305,1736622633181,-1300.42,0.00010436,2]
[348567307,1736622633190,-578.02,0.00010436,2]
[348567309,1736622633201,-565.77,0.00010436,2]
[348567311,1736622633210,-565.77,0.00010436,2]
[348567313,1736622633220,-500.0,0.00010436,2]
[348567316,1736622633230,-733.68,0.00010436,2]
[348567318,1736622633240,-500.0,0.00010436,2]
[348567319,1736622633250,-500.0,0.00010436,2]
[348567322,1736622633259,-500.0,0.00010436,2]
[348567324,1736622633269,-500.0,0.00010436,2]
[348567326,1736622633278,-888.33,0.00010436,2]
[348567328,1736622633287,-500.0,0.00010436,2]
[348567330,1736622633297,-688.5,0.00010436,2]
[348567332,1736622633307,-638.55,0.00010436,2]
[348567334,1736622633317,-1370.57,0.00010436,2]
[348567335,1736622633326,-1565.18,0.00010436,2]
[348567337,1736622633336,-500.0,0.00010436,2]
[348567339,1736622633345,-500.0,0.00010436,2]
[348567341,1736622633354,-500.0,0.00010436,2]
[348567343,1736622633363,-500.0,0.00010437,2]
[348567345,1736622633373,-500.0,0.00010437,2]
[348567347,1736622633382,-500.0,0.00010437,2]
[348567349,1736622633391,-500.0,0.00010437,2]
[348567351,1736622633401,-500.0,0.00010437,2]
[348567353,1736622633410,-261.8405754,0.00010437,2]
[348567355,1736622633418,-500.0,0.00010437,2]
[348567357,1736622633427,-512.97,0.00010437,2]
[348567359,1736622633437,-500.0,0.00010437,2]
[348567361,1736622633446,-153.01538432,0.00010437,2]
[348567363,1736622633456,-500.0,0.00010437,2]
[348567365,1736622633465,-500.0,0.00010437,2]
[348567367,1736622633474,-500.0,0.00010437,2]
[348567369,1736622633484,-500.0,0.00010437,2]
[348567371,1736622633493,-500.0,0.00010437,2]
[348567373,1736622633504,-500.0,0.00010437,2]
[348567375,1736622633514,-500.0,0.00010437,2]